fUST/lending_fUST_20250826
["ID","MTS","AMOUNT","RATE_DAILY","PERIOD"]
[381334583,1756140654697,-480.0,0.00041095,30]
[381334584,1756140654706,-480.0,0.00041095,30]
[381334585,1756140654715,-843.91,0.00041095,30]
[381334586,1756140654724,-480.0,0.00041095,30]
[381334587,1756140654734,-913.07,0.00041095,30]
[381334588,1756140654744,-811.93,0.00041095,30]
[381334589,1756140654754,-863.05,0.00041095,30]
[381334590,1756140654763,-480.0,0.00041095,30]
[381334591,1756140654771,-480.0,0.00041095,30]
[381334592,1756140654781,-944.14,0.00041095,30]
[381334593,1756140654791,-480.0,0.00041095,30]
[381334594,1756140654801,-683.57,0.00041095,30]
[381334595,1756140654810,-480.0,0.00041095,30]
[381334596,1756140654820,-3286.24,0.00041095,30]
[381334597,1756140654829,-1280.13,0.00041095,30]
[381334598,1756140654843,-480.0,0.00041095,30]
[381334599,1756140654852,-480.0,0.00041095,30]
[381334600,1756140654862,-747.73,0.00041095,30]
[381334601,1756140654871,-480.0,0.00041095,30]
[381334602,1756140654880,-480.0,0.00041095,30]
[381334603,1756140654890,-640.67,0.00041095,30]
[381334604,1756140654899,-480.0,0.00041095,30]
[381334605,1756140654909,-480.0,0.00041095,30]
[381334606,1756140654919,-480.0,0.00041095,30]
[381334607,1756140654929,-480.0,0.00041095,30]
[381334608,1756140654938,-480.0,0.00041095,30]
[381334609,1756140654947,-480.0,0.00041095,30]
[381334610,1756140654957,-480.0,0.00041095,30]
[381334611,1756140654966,-730.93,0.00041095,30]
[381334612,1756140654975,-480.0,0.00041095,30]
[381334613,1756140654984,-3784.88,0.00041095,30]
[381334614,1756140654995,-1041.93,0.00041095,30]
[381334615,1756140655004,-671.3,0.00041095,30]
[381334616,1756140655013,-480.0,0.00041095,30]
[381334617,1756140655023,-12259.19,0.00041095,30]
[381334618,1756140655032,-151.0,0.00041095,30]
[381334619,1756140655042,-480.0,0.00041095,30]
[381334620,1756140655051,-151.0,0.00041095,30]
[381334621,1756140655061,-152.602771,0.00041095,30]
[381334622,1756140655070,-4589.12,0.00041095,30]
[381334623,1756140655079,-619.53959286,0.00041095,30]
[381334624,1756140655090,-151.0,0.00041095,30]
[381334625,1756140655099,-151.0,0.00041095,30]
[381334626,1756140655109,-151.0,0.00041095,30]
[381334627,1756140655118,-151.0,0.00041095,30]
[381334628,1756140655127,-758.37,0.00041095,30]
[381334629,1756140655137,-480.0,0.00041095,30]
[381334630,1756140655146,-1045.84,0.00041095,30]
[381334631,1756140655155,-3506.22,0.00041095,30]
[381334632,1756140655165,-1136.29,0.00041095,30]
[381334633,1756140655174,-585.62,0.00041095,30]
[381334634,1756140655184,-151.0,0.00041095,30]
[381334635,1756140655194,-151.0,0.00041095,30]
[381334636,1756140655203,-151.0,0.00041095,30]
[381334637,1756140655213,-151.0,0.00041095,30]
[381334638,1756140655222,-480.0,0.00041095,30]
[381334639,1756140655231,-151.0,0.00041095,30]
[381334640,1756140655241,-151.0,0.00041095,30]
[381334641,1756140655252,-151.0,0.00041095,30]
[381334643,1756140655261,-151.0,0.00041095,30]
[381334645,1756140655270,-151.0,0.00041095,30]
[381334646,1756140655280,-151.0,0.00041095,30]
[381334648,1756140655289,-480.0,0.00041095,30]
[381334650,1756140655298,-480.0,0.00041095,30]
[381334652,1756140655308,-480.0,0.00041095,30]
[381334654,1756140655317,-303.63914254,0.00041095,30]
[381334656,1756140655327,-675.02367465,0.00041095,30]
[381334702,1756140655775,-1436.24338118,0.00041095,30]
[381334705,1756140655798,-424.38294417,0.00041095,30]
[381334707,1756140655807,-480.0,0.00041095,30]
[381334709,1756140655817,-480.0,0.00041095,30]
[381334711,1756140655826,-480.0,0.00041095,30]
[381334713,1756140655836,-1010.84,0.00041095,30]
[381334715,1756140655847,-151.0,0.00041095,30]
[381334717,1756140655856,-151.0,0.00041095,30]
[381334719,1756140655865,-1085.11212469,0.00041095,30]
[381334805,1756140656712,1804.3622178,0.00031331,60]
[381334808,1756140656733,1793.36661091,0.00031331,60]
[381334811,1756140656754,1402.27117129,0.00031331,60]
[381334981,1756140658561,199.0,0.00031231,60]
[381335729,1756140666421,81.79177207,0.00031331,60]
[381335732,1756140666443,1775.6744641,0.00031331,60]
[381335735,1756140666464,1756.51307659,0.00031331,60]
[381337276,1756140685170,204.52690041,0.000199,2]
[381337287,1756140685271,204.52690035,0.00022845,2]
[381337297,1756140685372,204.52690035,0.00025791,4]
[381337408,1756140770631,-204.52690035,0.00028736,10]
[381337409,1756140775073,199.0,0.00028636,10]
[381337411,1756140854114,204.52690041,0.000199,2]
[381337412,1756140854188,204.52690035,0.00023752,2]
[381337413,1756140854234,204.52690035,0.00027603,8]
[381337414,1756140855414,5000.0,0.0002956,2]
[381337415,1756140873383,5000.0,0.0002966,2]
[381337416,1756140888854,5000.0,0.0002986,2]
[381337417,1756140905313,5000.0,0.0002996,2]
[381337418,1756140922074,5000.0,0.0002996,2]
[381337419,1756140937614,0.01,0.0002996,2]
[381337420,1756140940756,-4999.99,0.0002996,2]
[381337421,1756140950731,-204.52690035,0.00031455,16]
[381337422,1756140950767,-204.52690035,0.00035306,24]
[381337423,1756140952724,5000.0,0.0002986,2]
[381337424,1756140968833,0.01,0.0002986,2]
[381337425,1756140970917,-4999.99,0.0002986,2]
[381337426,1756140984513,5000.0,0.0002996,2]
[381337427,1756141000081,5000.0,0.0002996,2]
[381337428,1756141011566,169.6736119,0.00029956,2]
[381337430,1756141022602,5000.0,0.0003006,2]
[381337431,1756141027107,240.07852746,0.000199,2]
[381337432,1756141027237,240.07852742,0.00021627,2]
[381337433,1756141027325,240.07852742,0.00023353,2]
[381337434,1756141027421,240.07852742,0.0002508,2]
[381337435,1756141027528,240.07852742,0.00026806,6]
[381337436,1756141027656,240.07852742,0.00028533,10]
[381337437,1756141039240,3389.86522354,0.0003006,2]
[381337438,1756141040977,-1610.13477646,0.0003006,2]
[381337439,1756141054644,5000.0,0.0003006,2]
[381337440,1756141070758,5000.0,0.0003016,2]
[381337441,1756141070959,-240.07852742,0.00030259,13]
[381337442,1756141086841,5000.0,0.0003026,2]
[381337443,1756141102164,4519.85294516,0.0003026,2]
[381337444,1756141111058,-480.14705484,0.0003026,2]
[381337445,1756141117526,5000.0,0.0003026,2]
[381337446,1756141133609,4039.71589032,0.0003026,2]
[381337447,1756141151124,-322.05533494,0.0003026,2]
[381337448,1756141157106,164.073193,0.00013699,2]
[381337449,1756141202198,546.2220914,0.000199,2]
[381337450,1756141202334,546.22209128,0.00021627,2]
[381337451,1756141203013,500.0,0.00025205,2]
[381337452,1756141203403,500.0,0.00025205,2]
[381337453,1756141203788,376.00613441,0.00025205,2]
[381337454,1756141209246,546.22209128,0.00023353,2]
[381337455,1756141209368,546.22209128,0.0002508,2]
[381337456,1756141209481,546.22209128,0.00026806,6]
[381337457,1756141209595,546.22209128,0.00028533,10]
[381337458,1756141209723,546.22209128,0.00030259,13]
[381337459,1756141221242,-153.0,0.00031,120]
[381337460,1756141221272,-164.073193,0.00031311,2]
[381337461,1756141221300,-185.72848102,0.00031339,2]
[381337462,1756141221328,-1283.41142486,0.00031367,4]
[381337463,1756141221364,-546.22209128,0.00031986,17]
[381337464,1756141221392,-209.52749684,0.00033512,2]
[381337465,1756141221681,-153.61989224,0.00033612,118]
[381337466,1756141221716,-546.22209128,0.00033712,21]
[381337467,1756141221752,-546.22209128,0.00035439,24]
[381337468,1756141221783,-1200.0,0.00036499,3]
[381337469,1756141222127,-1431.84924352,0.000365,2]
[381337470,1756141222155,-209.52749684,0.000365,2]
[381337471,1756141222184,-844.86965257,0.00036594,2]
[381337472,1756141222213,-400.0,0.00036594,2]
[381337473,1756141222241,-400.0,0.00036594,3]
[381337474,1756141222271,-300.0,0.00036594,3]
[381337475,1756141222299,-400.0,0.00036594,3]
[381337476,1756141222329,-400.0,0.00036594,3]
[381337477,1756141222396,-1461.39,0.00036596,120]
[381337478,1756141222425,-549.21198496,0.00036596,15]
[381337479,1756141222456,-638.73829405,0.00036596,7]
[381337480,1756141222484,-500.0,0.00036596,2]
[381337481,1756141222512,-362.97190694,0.00036596,15]
[381337482,1756141222541,-500.0,0.00036596,15]
[381337483,1756141222569,-294.2188923,0.00036596,15]
[381337484,1756141222600,-500.0,0.00036596,15]
[381337485,1756141222627,-8.07392748,0.00036596,7]
[381337486,1756141222809,-370.79998854,0.00036596,7]
[381337487,1756141222839,-500.0,0.00036596,15]
[381337488,1756141222869,-195.84933782,0.00036596,2]
[381337489,1756141222898,-500.0,0.00036596,15]
[381337490,1756141222928,-500.0,0.00036596,15]
[381337491,1756141222957,-500.0,0.00036596,15]
[381337492,1756141222988,-500.0,0.00036596,2]
[381337493,1756141223018,-500.0,0.00036596,15]
[381337494,1756141223048,-500.0,0.00036596,15]
[381337495,1756141223078,-500.0,0.00036596,15]
[381337496,1756141223106,-366.71134728,0.00036596,15]
[381337497,1756141231303,-199.0,0.00036496,120]
[381337498,1756141231337,-199.0,0.00036496,120]
[381337499,1756141231373,-133.28865272,0.00036596,15]
[381337500,1756141231405,-489.9131403,0.00036596,15]
[381337501,1756141231435,-437.92718776,0.00036596,15]
[381337502,1756141231463,-261.62235898,0.00036596,7]
[381337504,1756141281490,-767.652954,0.000312,6]
[381337505,1756141311416,-343.0,0.00031474,120]
[381337507,1756141335383,153.0,0.00031,120]
[381337508,1756141379138,417.15472785,0.00028,10]
[381337509,1756141392248,864.81900153,0.000199,2]
[381337510,1756141392362,864.81900143,0.00021627,2]
[381337511,1756141392468,864.81900143,0.00023353,2]
[381337512,1756141392570,864.81900143,0.0002508,2]
[381337513,1756141392680,864.81900143,0.00026806,6]
[381337514,1756141392820,864.81900143,0.00028533,10]
[381337515,1756141392919,864.81900143,0.00030259,13]
[381337516,1756141393032,864.81900143,0.00031986,17]
[381337517,1756141395370,627.82081855,0.0003186,7]
[381337518,1756141448794,309.060893,0.00024715,2]
[381337519,1756141449194,225.43921219,0.0002497,2]
[381337520,1756141450439,584.55377733,0.000253,2]
[381337521,1756141491937,-318.46,0.00032581,30]
[381337522,1756141531871,-343.0,0.00033048,120]
[381337523,1756141534645,502.0,0.00031404,120]
[381337524,1756141535892,502.0,0.00032975,120]
[381337525,1756141543417,212.31,0.00032928,30]
[381337527,1756141570129,155.19,0.00028627,15]
[381337528,1756141584317,810.0794366,0.000199,2]
[381337529,1756141584430,810.0794364,0.00021627,2]
[381337530,1756141584556,810.0794364,0.00023353,2]
[381337531,1756141584699,810.0794364,0.0002508,2]
[381337532,1756141584781,810.0794364,0.00026806,6]
[381337533,1756141584920,810.0794364,0.00028533,10]
[381337534,1756141585041,810.0794364,0.00030259,13]
[381337535,1756141585151,810.0794364,0.00031986,17]
[381337536,1756141638141,-810.0794364,0.00033712,21]
[381337537,1756141638162,-502.0,0.00034623,120]
[381337538,1756141638186,-343.0,0.000347,120]
[381337539,1756141638208,-1022.1654374,0.00035028,2]
[381337540,1756141640145,10000.01,0.0003136,60]
[381337541,1756141640167,3364.1845086,0.0003136,60]
[381337542,1756141640189,9787.7,0.0003136,60]
[381337543,1756141640211,8310.01,0.0003136,60]
[381337544,1756141640236,9363.09,0.0003136,60]
[381337545,1756141680902,189.52,0.00018182,7]
[381337550,1756141747178,-19292.12842345,0.0002699,2]
[381337551,1756141749150,-6929.58847331,0.0002699,2]
[381337552,1756141749171,-500.0,0.00030973,5]
[381337553,1756141749191,-500.0,0.00030973,5]
[381337554,1756141749212,-32252.239876,0.0003135,2]
[381337555,1756141749234,-1237.61368092,0.00031359,2]
[381337556,1756141753582,-1938.82925446,0.00031359,2]
[381337557,1756141753604,-479.37217412,0.00031359,2]
[381337558,1756141753625,-3176.44293538,0.00031359,2]
[381337559,1756141753645,-3176.44293538,0.00031359,2]
[381337560,1756141753666,-3176.44293538,0.00031359,2]
[381337561,1756141753686,-1560.29425466,0.00031359,2]
[381337562,1756141756125,-1616.14868072,0.00031359,2]
[381337563,1756141756148,-3176.44293538,0.00031359,2]
[381337564,1756141756168,-3176.44293538,0.00031359,2]
[381337565,1756141756189,-3176.44293538,0.00031359,2]
[381337566,1756141756210,-3176.44293538,0.00031359,2]
[381337567,1756141756230,-3176.44293538,0.00031359,2]
[381337568,1756141756251,-3176.44293538,0.00031359,2]
[381337569,1756141756271,-3176.44293538,0.00031359,2]
[381337570,1756141756291,-3176.44293538,0.00031359,2]
[381337571,1756141756312,-3176.44293538,0.00031359,2]
[381337572,1756141756332,-3176.44293538,0.00031359,2]
[381337573,1756141756354,-326.4363542,0.00031359,2]
[381337574,1756141756374,-3176.44293538,0.00031359,2]
[381337575,1756141756395,-3176.44293538,0.00031359,2]
[381337576,1756141756415,-3176.44293538,0.00031359,2]
[381337577,1756141756434,-3176.44293538,0.00031359,2]
[381337578,1756141756455,-3176.44293538,0.00031359,2]
[381337579,1756141756475,-3176.44293538,0.00031359,2]
[381337580,1756141756497,-332.21257114,0.00031359,2]
[381337581,1756141756517,-3176.44293538,0.00031359,2]
[381337582,1756141756538,-3176.44293538,0.00031359,2]
[381337583,1756141756558,-3176.44293538,0.00031359,2]
[381337584,1756141756577,-5104.52370373,0.00031359,2]
[381337585,1756141756598,-5104.52370373,0.00031359,2]
[381337586,1756141756617,-5104.52370373,0.00031359,2]
[381337587,1756141756637,-5104.52370373,0.00031359,2]
[381337588,1756141756657,-5104.52370373,0.00031359,2]
[381337589,1756141756677,-5104.52370373,0.00031359,2]
[381337590,1756141756697,-5104.52370373,0.00031359,2]
[381337591,1756141756717,-5104.52370373,0.00031359,2]
[381337592,1756141756737,-1429.26663703,0.00031359,2]
[381337593,1756141756758,-722.60076341,0.0003136,2]
[381337594,1756141756779,-80040.66,0.000314,7]
[381337595,1756141756801,-626.04,0.000314,7]
[381337596,1756141756821,-486.20982051,0.00031521,5]
[381337597,1756141756840,-162.05769803,0.00031521,5]
[381337598,1756141756860,-240.02769707,0.0003189,2]
[381337599,1756141756879,-60107.2239209,0.0003248,2]
[381337600,1756141756898,-500.0,0.0003455,5]
[381337601,1756141756919,-334.21355014,0.0003455,5]
[381337602,1756141756937,-245.44409642,0.0003455,5]
[381337603,1756141756957,-500.0,0.0003455,5]
[381337604,1756141756979,-500.0,0.0003455,5]
[381337605,1756141757000,-500.0,0.0003455,5]
[381337606,1756141757019,-500.0,0.0003455,5]
[381337607,1756141757039,-8947.79140584,0.00034928,2]
[381337608,1756141757060,-845.050568,0.00035028,2]
[381337609,1756141757079,-408.65597249,0.00035098,5]
[381337610,1756141757100,-500.0,0.00035098,5]
[381337611,1756141757119,-1009.26859312,0.00035098,5]
[381337612,1756141757143,-200.0,0.00035319,120]
[381337613,1756141757165,-293.98792081,0.00035438,3]
[381337614,1756141768833,1764.0,0.00031367,120]
[381337615,1756141771108,-1631.17585567,0.00031367,120]
[381337616,1756141778734,553.99583154,0.000199,2]
[381337617,1756141778846,553.9958313,0.00021627,2]
[381337618,1756141778958,553.9958313,0.00023353,2]
[381337619,1756141779081,553.9958313,0.0002508,2]
[381337620,1756141779192,553.9958313,0.00026806,6]
[381337694,1756141834741,-553.9958313,0.00028533,10]
[381337754,1756141835317,-553.9958313,0.00030259,13]
[381337756,1756141835326,-500.0,0.00031273,5]
[381337758,1756141835336,-500.0,0.00031273,5]
[381337760,1756141835345,-7586.20416872,0.000313,2]
[381337770,1756141835425,-9036.06583128,0.000313,2]
[381337772,1756141835435,-750.34165652,0.000313,7]
[381337783,1756141835508,-62254.11035132,0.000313,7]
[381337938,1756141838536,-17036.20799216,0.000313,7]
[381337939,1756141838546,-626.04,0.000313,7]
[381337940,1756141838556,-361.30038171,0.00031367,2]
[381337941,1756141838569,-406.78,0.00031811,10]
[381337942,1756141838579,-1000.0,0.00031821,5]
[381337943,1756141838588,-251.0,0.00031914,120]
[381337944,1756141838597,-553.9958313,0.00031986,17]
[381337945,1756141838607,-251.0,0.0003351,120]
[381337946,1756141838617,-553.9958313,0.00033712,21]
[381337947,1756141838626,-553.9958313,0.00035439,24]
[381337948,1756141838635,-502.0,0.00036354,120]
[381337949,1756141838645,-343.0,0.00036435,120]
[381337950,1756141838655,-216.04034502,0.00036497,2]
[381337951,1756141838664,-442.22,0.000365,7]
[381337952,1756141838674,-529.29072822,0.000365,2]
[381337953,1756141838684,-151.0,0.00036575,2]
[381337954,1756141838694,-151.0,0.00036575,2]
[381337955,1756141838703,-151.0,0.00036575,2]
[381337956,1756141838713,-151.0,0.00036575,2]
[381337957,1756141838722,-151.0,0.00036575,2]
[381337958,1756141838731,-151.0,0.00036575,2]
[381337959,1756141838740,-190.90923172,0.00036575,2]
[381337960,1756141838750,-414.35738085,0.00036596,2]
[381337961,1756141838760,-1400.5,0.00036596,120]
[381337962,1756141838770,-192.133,0.00036596,45]
[381337963,1756141838779,-118332.1909407,0.00036597,2]
[381337964,1756141838788,-200.0,0.00036977,120]
[381337965,1756141838798,-7844.67784185,0.00037065,2]
[381337966,1756141838807,-606.66,0.0003709,3]
[381337967,1756141838817,-553.9958313,0.00037166,28]
[381337968,1756141838827,-16622.27,0.000372,14]
[381337969,1756141838836,-80040.66,0.000372,14]
[381337970,1756141838845,-626.04,0.000372,7]
[381337971,1756141838854,-238.6681,0.00037297,2]
[381337972,1756141838864,-500.7607464,0.000377,5]
[381337973,1756141838873,-153.0,0.000378,120]
[381337974,1756141838883,-8947.79140583,0.00037961,2]
[381337975,1756141838893,-502.0,0.00038172,120]
[381337976,1756141838902,-1400.5,0.0003824,120]
[381337977,1756141838912,-500.0,0.0003832,5]
[381337978,1756141838922,-500.0,0.0003832,5]
[381337979,1756141838931,-500.0,0.0003832,5]
[381337980,1756141838940,-500.0,0.0003832,5]
[381337981,1756141838949,-500.0,0.0003832,5]
[381337982,1756141838959,-158.84949824,0.0003832,2]
[381337983,1756141838969,-500.0,0.0003832,5]
[381337984,1756141838979,-500.0,0.0003832,5]
[381337985,1756141838988,-500.0,0.0003832,5]
[381337986,1756141838997,-154.79434068,0.0003832,5]
[381337987,1756141839008,-500.0,0.0003832,5]
[381337988,1756141839018,-500.0,0.0003832,5]
[381337989,1756141839027,-600.0,0.00038355,7]
[381337990,1756141839036,-204.74,0.00038356,14]
[381337991,1756141839046,-500.0,0.00038417,5]
[381337992,1756141839056,-500.0,0.00038417,5]
[381337993,1756141839066,-502.32416053,0.00038417,5]
[381337994,1756141839075,-573.51611395,0.00038417,5]
[381337995,1756141839084,-501.30865883,0.00038417,5]
[381337996,1756141839094,-500.0,0.00038417,5]
[381337997,1756141839104,-500.0,0.00038417,5]
[381337998,1756141839114,-173.96261013,0.00038417,5]
[381337999,1756141839123,-501.122322,0.00038417,5]
[381338000,1756141839133,-500.0,0.00038417,5]
[381338001,1756141839143,-500.0,0.00038417,5]
[381338002,1756141839155,-500.0,0.00038417,5]
[381338003,1756141839164,-500.0,0.00038417,5]
[381338004,1756141839174,-500.0,0.00038417,5]
[381338005,1756141839183,-500.0,0.00038417,5]
[381338006,1756141839193,-500.39908462,0.00038417,5]
[381338007,1756141839203,-503.27584518,0.00038417,5]
[381338008,1756141839212,-502.36335855,0.00038417,5]
[381338009,1756141839224,-173.49018429,0.0003865,2]
[381338010,1756141839233,-500.0,0.0003866,5]
[381338011,1756141839242,-500.0,0.0003866,5]
[381338012,1756141839251,-211.94,0.00038673,120]
[381338013,1756141839261,-182.91,0.00038673,120]
[381338014,1756141839270,-151.0,0.00038746,30]
[381338015,1756141839280,-151.0,0.00038746,30]
[381338016,1756141839289,-151.0,0.00038746,30]
[381338017,1756141839298,-155.472744,0.00038746,30]
[381338018,1756141839308,-151.0,0.00038746,30]
[381338019,1756141839318,-155.472744,0.00038746,30]
[381338020,1756141839328,-151.0,0.00038746,30]
[381338021,1756141839337,-155.472744,0.00038746,30]
[381338022,1756141839347,-151.0,0.00038746,30]
[381338023,1756141839356,-155.472744,0.00038746,30]
[381338024,1756141839365,-508.26772255,0.00038773,5]
[381338025,1756141839375,-501.26524356,0.00038773,5]
[381338026,1756141839384,-500.0,0.00038773,5]
[381338027,1756141839395,-362.13070189,0.00038773,5]
[381338028,1756141839404,-500.0,0.00038773,2]
[381338029,1756141839414,-372.4272047,0.00038773,5]
[381338030,1756141839423,-1000.0,0.00038868,5]
[381338031,1756141839433,-1000.0,0.00038868,5]
[381338032,1756141839443,-505.98565337,0.00038868,5]
[381338033,1756141839453,-1000.0,0.00038868,5]
[381338034,1756141839462,-595.85169125,0.00038868,5]
[381338035,1756141839471,-1000.0,0.00038868,5]
[381338036,1756141839481,-997.62415652,0.00038868,5]
[381338037,1756141839491,-553.9958313,0.00038892,32]
[381338038,1756141839500,-282.067784,0.000389,30]
[381338039,1756141839510,-16622.27,0.000389,14]
[381338040,1756141839520,-151.0,0.000389,30]
[381338041,1756141839529,-151.0,0.000389,30]
[381338042,1756141839538,-151.0,0.000389,30]
[381338044,1756141839548,-151.0,0.000389,30]
[381338046,1756141839557,-80040.66,0.000389,14]
[381338047,1756141839568,-626.04,0.000389,7]
[381338049,1756141839578,-1077.45657638,0.00038965,5]
[381338051,1756141839587,-1088.00950751,0.00038965,5]
[381338053,1756141839596,-502.85246383,0.00038965,5]
[381338055,1756141839605,-1002.73957357,0.00038965,5]
[381338057,1756141839615,-1002.96478376,0.00038965,5]
[381338059,1756141839624,-501.12921333,0.00038965,5]
[381338061,1756141839634,-500.0,0.00038965,5]
[381338063,1756141839643,-1000.0,0.00038965,5]
[381338065,1756141839653,-1000.0,0.00038965,5]
[381338066,1756141839663,-876503.37488365,0.00039,30]
[381338068,1756141839677,-87519.33479271,0.00039,30]
[381338069,1756141839701,-13936.96657688,0.00039,30]
[381338459,1756141843786,-251.0,0.00035186,120]
[381338461,1756141843796,-299.73773191,0.00036877,2]
[381338795,1756141846911,-1115.12853116,0.00036877,2]
[381338797,1756141846920,-251.0,0.00036945,120]
[381338799,1756141846931,-1414.86626304,0.00037417,2]
[381338801,1756141846940,-387.2256533,0.00037641,30]
[381338803,1756141846949,-1414.86626304,0.00037956,2]
[381338805,1756141846959,-1414.86626304,0.00038496,2]
[381338807,1756141846968,-207.17869043,0.00038773,2]
[381338809,1756141846977,-251.0,0.00038792,120]
[381338811,1756141846987,-103922.00374676,0.00039,30]
[381338813,1756141846996,-1414.86626304,0.00039035,2]
[381338815,1756141847005,-232.4766599,0.00039135,2]
[381338816,1756141847014,-600.0,0.00039177,7]
[381338818,1756141847024,-160.0,0.00039208,2]
[381338820,1756141847033,-231.55571979,0.00039208,5]
[381338823,1756141847043,-672.18433985,0.00039208,5]
[381338825,1756141847052,-500.0,0.00039227,5]
[381338826,1756141847062,-151.893212,0.00039249,30]
[381338829,1756141847072,-151.0,0.00039249,30]
[381338831,1756141847082,-151.0,0.00039249,30]
[381338832,1756141847091,-151.0,0.00039249,30]
[381338835,1756141847101,-151.0,0.00039249,30]
[381338837,1756141847110,-151.0,0.00039249,30]
[381338838,1756141847119,-151.0,0.00039249,30]
[381338840,1756141847129,-151.0,0.00039249,30]
[381338842,1756141847139,-153.430594,0.00039249,30]
[381338844,1756141847152,-221.187154,0.00039249,30]
[381338847,1756141847162,-221.187154,0.00039249,30]
[381338849,1756141847173,-221.187154,0.00039249,30]
[381338851,1756141847182,-221.187154,0.00039249,30]
[381338853,1756141847191,-151.0,0.00039249,30]
[381338855,1756141847202,-151.0,0.00039249,30]
[381338857,1756141847211,-151.0,0.00039249,30]
[381338859,1756141847222,-151.0,0.00039249,30]
[381338861,1756141847232,-151.0,0.00039249,30]
[381338863,1756141847241,-155.472744,0.00039249,30]
[381338865,1756141847250,-151.0,0.00039249,30]
[381338867,1756141847259,-155.472744,0.00039249,30]
[381338869,1756141847269,-151.0,0.00039249,30]
[381338871,1756141847279,-155.472744,0.00039249,30]
[381338873,1756141847288,-249.337844,0.00039249,30]
[381338874,1756141847297,-155.472744,0.00039249,30]
[381338876,1756141847307,-151.0,0.00039249,30]
[381338879,1756141847318,-151.0,0.00039249,30]
[381338881,1756141847328,-151.0,0.00039249,30]
[381338882,1756141847337,-213.289384,0.00039249,30]
[381338885,1756141847348,-151.0,0.00039249,30]
[381338887,1756141847357,-151.0,0.00039249,30]
[381338888,1756141847367,-370000.0,0.00039249,2]
[381338891,1756141847377,-400.25187031,0.00039321,5]
[381338892,1756141847386,-500.0,0.00039321,2]
[381338895,1756141847395,-269.84056224,0.00039355,120]
[381338897,1756141847405,-505.44385229,0.00039416,5]
[381338898,1756141847414,-1003.29259184,0.00039416,5]
[381338900,1756141847424,-500.0,0.00039416,5]
[381338902,1756141847433,-152.196067,0.00039448,2]
[381338904,1756141847443,-1500.0,0.00039513,5]
[381338907,1756141847453,-502.05388542,0.00039513,5]
[381338909,1756141847462,-1400.5,0.00039884,120]
[381338911,1756141847471,-600.0,0.00039999,7]
[381338913,1756141847481,-1023.39153393,0.0004,120]
[381338915,1756141847491,-294.2662707,0.0004,30]
[381338917,1756141847499,-2000.0,0.00040061,5]
[381338919,1756141847509,-973.0,0.00040068,2]
[381338921,1756141847518,-2154.0,0.00040068,2]
[381338923,1756141847528,-637.0,0.00040068,2]
[381338924,1756141847537,-800.0,0.00040604,7]
[381338926,1756141847547,-2500.0,0.00040608,5]
[381338928,1756141847556,-553.9958313,0.00040619,36]
[381338930,1756141847566,-343.6040668,0.00040657,7]
[381338932,1756141847576,-800.0,0.00040682,7]
[381338934,1756141847585,-800.0,0.00040684,7]
[381338936,1756141847595,-251.0,0.00040732,120]
[381338938,1756141847604,-168.0,0.00040768,2]
[381338940,1756141847614,-600.0,0.00040821,7]
[381338942,1756141847623,-199.0,0.00040855,120]
[381338944,1756141847633,-800.0,0.00040897,7]
[381338947,1756141847643,-1000.0,0.00040897,120]
[381338949,1756141847653,-151.0,0.000409,19]
[381338951,1756141847663,-500.0,0.00040954,30]
[381338953,1756141847672,-2200.0,0.00040954,14]